fUSD/lending_fUSD_20240419
["ID","MTS","AMOUNT","RATE_DAILY","PERIOD"]
[322976349,1713556243635,-841.29,0.00016438,2]
[322976350,1713556243645,-500.0,0.00016438,2]
[322976351,1713556243654,-725.77,0.00016438,2]
[322976352,1713556243663,-500.0,0.00016438,2]
[322976353,1713556243673,-500.0,0.00016438,2]
[322976354,1713556243682,-500.0,0.00016438,2]
[322976355,1713556243691,-634.45,0.00016438,2]
[322976356,1713556243701,-500.0,0.00016438,2]
[322976357,1713556243710,-815.9,0.00016438,2]
[322976358,1713556243719,-500.0,0.00016438,2]
[322976359,1713556243729,-528.23,0.00016438,2]
[322976360,1713556243739,-776.0,0.00016438,2]
[322976361,1713556243749,-500.0,0.00016438,2]
[322976362,1713556243759,-939.36,0.00016438,2]
[322976363,1713556243769,-522.65,0.00016438,2]
[322976364,1713556243778,-831.91,0.00016438,2]
[322976365,1713556243788,-500.0,0.00016438,2]
[322976366,1713556243797,-500.0,0.00016438,2]
[322976367,1713556243808,-500.0,0.00016438,2]
[322976368,1713556243818,-976.26,0.00016438,2]
[322976369,1713556243826,-1075.92,0.00016438,2]
[322976370,1713556243836,-770.87,0.00016438,2]
[322976371,1713556243847,-500.0,0.00016438,2]
[322976372,1713556243856,-977.16,0.00016438,2]
[322976373,1713556243865,-514.7,0.00016438,2]
[322976374,1713556243875,-1077.57,0.00016438,2]
[322976375,1713556243884,-1254.21,0.00016438,2]
[322976376,1713556243893,-511.15,0.00016438,2]
[322976377,1713556243902,-500.0,0.00016438,2]
[322976378,1713556243912,-500.0,0.00016438,2]
[322976379,1713556243922,-500.0,0.00016438,2]
[322976380,1713556243931,-500.0,0.00016438,2]
[322976381,1713556243941,-563.59,0.00016438,2]
[322976382,1713556243954,-706.73,0.00016438,2]
[322976383,1713556243965,-500.0,0.00016438,2]
[322976384,1713556243975,-500.0,0.00016438,2]
[322976385,1713556243984,-504.42053136,0.00016438,2]
[322976386,1713556243993,-500.0,0.00016438,2]
[322976387,1713556244002,-1449.18,0.00016438,2]
[322976388,1713556244013,-500.0,0.00016438,2]
[322976389,1713556244024,-500.0,0.00016438,2]
[322976390,1713556244035,-500.0,0.00016438,2]
[322976391,1713556244045,-939.55,0.00016438,2]
[322976392,1713556244057,-578.99,0.00016438,2]
[322976393,1713556244066,-724.74,0.00016438,2]
[322976394,1713556244075,-500.0,0.00016438,2]
[322976395,1713556244084,-820.92,0.00016438,2]
[322976396,1713556244093,-500.0,0.00016438,2]
[322976397,1713556244103,-916.07,0.00016438,2]
[322976398,1713556244113,-1180.26,0.00016438,2]
[322976399,1713556244122,-1070.0,0.00016438,2]
[322976400,1713556244131,-500.0,0.00016438,2]
[322976401,1713556244141,-500.0,0.00016438,2]
[322976402,1713556244150,-698.77,0.00016438,2]
[322976403,1713556244162,-500.0,0.00016438,2]
[322976404,1713556244171,-524.46,0.00016438,2]
[322976405,1713556244180,-735.41,0.00016438,2]
[322976406,1713556244190,-608.99,0.00016438,2]
[322976407,1713556244198,-500.0,0.00016438,2]
[322976408,1713556244208,-500.0,0.00016438,2]
[322976409,1713556244217,-588.41,0.00016438,2]
[322976410,1713556244226,-637.72,0.00016438,2]
[322976411,1713556244235,-506.33,0.00016438,2]
[322976412,1713556244244,-500.0,0.00016438,2]
[322976413,1713556244254,-1640.11,0.00016438,2]
[322976414,1713556244263,-500.0,0.00016438,2]
[322976415,1713556244274,-597.96307433,0.00016438,2]
[322976416,1713556244282,-981.84,0.00016438,2]
[322976417,1713556244291,-487.47379554,0.00016438,2]
[322976418,1713556244302,-1476.05,0.00016438,2]
[322976419,1713556244311,-500.0,0.00016438,2]
[322976420,1713556244320,-1663.24,0.00016438,2]
[322976421,1713556244330,-542.07,0.00016438,2]
[322976422,1713556244338,-703.21,0.00016438,2]
[322976423,1713556244347,-500.0,0.00016438,2]
[322976424,1713556244357,-500.0,0.00016438,2]
[322976425,1713556244367,-500.0,0.00016438,2]
[322976426,1713556244376,-325.70835309,0.00016438,2]
[322976427,1713556244385,-1739.58,0.00016438,2]
[322976428,1713556244394,-1441.3,0.00016438,2]
[322976429,1713556244403,-500.0,0.00016438,2]
[322976430,1713556244412,-500.0,0.00016438,2]
[322976431,1713556244423,-500.0,0.00016438,2]
[322976432,1713556244432,-1388.44,0.00016438,2]
[322976433,1713556244441,-500.0,0.00016438,2]
[322976434,1713556244450,-804.94,0.00016438,2]
[322976435,1713556244459,-549.41,0.00016438,2]
[322976436,1713556244468,-626.31793984,0.00016438,2]
[322976437,1713556244478,-1074.95,0.00016438,2]
[322976438,1713556244487,-500.0,0.00016438,2]
[322976439,1713556244497,-500.0,0.00016438,2]
[322976440,1713556244506,-874.69,0.00016438,2]
[322976441,1713556244515,-501.2,0.00016438,2]
[322976442,1713556244525,-500.0,0.00016438,2]
[322976443,1713556244535,-500.0,0.00016438,2]
[322976444,1713556244543,-500.0,0.00016438,2]
[322976445,1713556244553,-500.0,0.00016438,2]
[322976446,1713556244563,-750.3,0.00016438,2]
[322976447,1713556244572,-500.0,0.00016438,2]
[322976448,1713556244582,-500.0,0.00016438,2]
[322976449,1713556244591,-1156.52,0.00016438,2]
[322976450,1713556244600,-500.0,0.00016438,2]
[322976451,1713556244610,-500.0,0.00016438,2]
[322976452,1713556244620,-693.11,0.00016438,2]
[322976453,1713556244630,-500.0,0.00016438,2]
[322976454,1713556244639,-500.0,0.00016438,2]
[322976455,1713556244649,-868.39,0.00016438,2]
[322976456,1713556244658,-500.0,0.00016438,2]
[322976457,1713556244668,-1068.03,0.00016438,2]
[322976458,1713556244677,-1212.41,0.00016438,2]
[322976459,1713556244686,-735.28,0.00016438,2]
[322976460,1713556244696,-1066.73,0.00016438,2]
[322976461,1713556244706,-500.0,0.00016438,2]
[322976462,1713556244715,-500.0,0.00016438,2]
[322976463,1713556244725,-1154.9,0.00016438,2]
[322976464,1713556244734,-684.29,0.00016438,2]
[322976465,1713556244744,-1997.79,0.00016438,2]
[322976466,1713556244753,-500.0,0.00016438,2]
[322976467,1713556244763,-500.0,0.00016438,2]
[322976468,1713556244772,-832.44,0.00016438,2]
[322976469,1713556244782,-1339.92,0.00016438,2]
[322976470,1713556244792,-500.0,0.00016438,2]
[322976471,1713556244802,-676.62,0.00016438,2]
[322976472,1713556244811,-500.0,0.00016438,2]
[322976473,1713556244820,-592.72,0.00016438,2]
[322976474,1713556244830,-500.0,0.00016438,2]
[322976475,1713556244839,-1071.64,0.00016438,2]
[322976476,1713556244849,-500.0,0.00016438,2]
[322976477,1713556244859,-500.0,0.00016438,2]
[322976478,1713556244868,-500.0,0.00016438,2]
[322976479,1713556244878,-695.4,0.00016438,2]
[322976480,1713556244887,-1005.05,0.00016438,2]
[322976481,1713556244897,-754.34,0.00016438,2]
[322976482,1713556244907,-2418.22,0.00016438,2]
[322976483,1713556244917,-500.0,0.00016438,2]
[322976484,1713556244926,-500.0,0.00016438,2]
[322976485,1713556244935,-500.0,0.00016438,2]
[322976486,1713556244945,-1312.98,0.00016438,2]
[322976487,1713556244955,-500.0,0.00016438,2]
[322976488,1713556244965,-505.31,0.00016438,2]
[322976489,1713556244974,-769.77,0.00016438,2]
[322976490,1713556244983,-500.0,0.00016438,2]
[322976491,1713556244992,-1140.54,0.00016438,2]
[322976492,1713556245001,-500.0,0.00016438,2]
[322976493,1713556245015,-500.0,0.00016438,2]
[322976494,1713556245025,-500.0,0.00016438,2]
[322976495,1713556245034,-2058.96,0.00016438,2]
[322976496,1713556245044,-500.0,0.00016438,2]
[322976497,1713556245055,-1121.14,0.00016438,2]
[322976498,1713556245064,-502.84,0.00016438,2]
[322976499,1713556245073,-500.0,0.00016438,2]
[322976500,1713556245083,-519.56,0.00016438,2]
[322976501,1713556245093,-781.22,0.00016438,2]
[322976502,1713556245103,-1229.3,0.00016438,2]
[322976503,1713556245112,-500.0,0.00016438,2]
[322976504,1713556245122,-574.59,0.00016438,2]
[322976505,1713556245131,-1162.62,0.00016438,2]
[322976506,1713556245140,-500.0,0.00016438,2]
[322976507,1713556245151,-500.0,0.00016438,2]
[322976508,1713556245160,-2434.28,0.00016438,2]
[322976509,1713556245169,-793.64,0.00016438,2]
[322976510,1713556245179,-500.0,0.00016438,2]
[322976511,1713556245188,-500.0,0.00016438,2]
[322976512,1713556245197,-1028.33,0.00016438,2]
[322976513,1713556245207,-500.0,0.00016438,2]
[322976514,1713556245216,-500.0,0.00016438,2]
[322976515,1713556245225,-1634.32,0.00016438,2]
[322976516,1713556245234,-500.0,0.00016438,2]
[322976517,1713556245243,-500.0,0.00016438,2]
[322976518,1713556245252,-594.24,0.00016438,2]
[322976519,1713556245262,-732.77,0.00016438,2]
[322976520,1713556245271,-607.65,0.00016438,2]
[322976521,1713556245281,-627.94,0.00016438,2]
[322976522,1713556245290,-917.52,0.00016438,2]
[322976523,1713556245299,-1253.38,0.00016438,2]
[322976524,1713556245309,-500.0,0.00016438,2]
[322976525,1713556245318,-500.0,0.00016438,2]
[322976526,1713556245328,-611.35,0.00016438,2]
[322976527,1713556245337,-860.19,0.00016438,2]
[322976528,1713556245348,-500.0,0.00016438,2]
[322976529,1713556245357,-500.0,0.00016438,2]
[322976530,1713556245366,-592.87,0.00016438,2]
[322976531,1713556245375,-500.0,0.00016438,2]
[322976532,1713556245385,-500.0,0.00016438,2]
[322976533,1713556245393,-798.2,0.00016438,2]
[322976534,1713556245403,-655.42,0.00016438,2]
[322976535,1713556245411,-500.0,0.00016438,2]
[322976536,1713556245422,-1074.22,0.00016438,2]
[322976537,1713556245433,-1328.53,0.00016438,2]
[322976538,1713556245444,-500.0,0.00016438,2]
[322976539,1713556245453,-500.0,0.00016438,2]
[322976540,1713556245462,-500.0,0.00016438,2]
[322976541,1713556245472,-1452.94,0.00016438,2]
[322976542,1713556245481,-500.0,0.00016438,2]
[322976543,1713556245490,-500.0,0.00016438,2]
[322976544,1713556245499,-916.96,0.00016438,2]
[322976545,1713556245508,-500.0,0.00016438,2]
[322976546,1713556245517,-1402.26,0.00016438,2]
[322976547,1713556245526,-781.75,0.00016438,2]
[322976548,1713556245535,-2329.4,0.00016438,2]
[322976549,1713556245544,-1062.38,0.00016438,2]
[322976550,1713556245554,-500.0,0.00016438,2]
[322976551,1713556245563,-650.97,0.00016438,2]
[322976552,1713556245572,-521.31,0.00016438,2]
[322976553,1713556245582,-500.0,0.00016438,2]
[322976554,1713556245591,-500.0,0.00016438,2]
[322976555,1713556245602,-500.0,0.00016438,2]
[322976556,1713556245612,-616.68,0.00016438,2]
[322976557,1713556245621,-500.0,0.00016438,2]
[322976558,1713556245630,-500.0,0.00016438,2]
[322976559,1713556245639,-500.0,0.00016438,2]
[322976560,1713556245648,-500.0,0.00016438,2]
[322976561,1713556245658,-1054.75,0.00016438,2]
[322976562,1713556245668,-589.55,0.00016438,2]
[322976563,1713556245678,-500.0,0.00016438,2]
[322976564,1713556245687,-1266.98,0.00016438,2]
[322976565,1713556245696,-500.0,0.00016438,2]
[322976566,1713556245705,-500.0,0.00016438,2]
[322976567,1713556245714,-1583.79,0.00016438,2]
[322976568,1713556245723,-500.0,0.00016438,2]
[322976569,1713556245733,-500.0,0.00016438,2]
[322976570,1713556245743,-526.37,0.00016438,2]
[322976571,1713556245752,-500.0,0.00016438,2]
[322976572,1713556245762,-1254.22,0.00016438,2]
[322976573,1713556245771,-721.98,0.00016438,2]
[322976574,1713556245781,-727.72,0.00016438,2]
[322976575,1713556245791,-500.0,0.00016438,2]
[322976576,1713556245801,-881.05,0.00016438,2]
[322976577,1713556245811,-500.0,0.00016438,2]
[322976578,1713556245822,-1155.87,0.00016438,2]
[322976579,1713556245832,-525.09,0.00016438,2]
[322976580,1713556245842,-500.0,0.00016438,2]
[322976581,1713556245852,-1053.13,0.00016438,2]
[322976582,1713556245862,-744.39,0.00016438,2]
[322976583,1713556245871,-627.17,0.00016438,2]
[322976584,1713556245880,-559.7,0.00016438,2]
[322976585,1713556245890,-500.0,0.00016438,2]
[322976586,1713556245899,-1139.78,0.00016438,2]
[322976587,1713556245908,-500.0,0.00016438,2]
[322976588,1713556245917,-1958.59,0.00016438,2]
[322976589,1713556245927,-568.38,0.00016438,2]
[322976590,1713556245936,-1093.69,0.00016438,2]
[322976591,1713556245945,-367.39837861,0.00016438,2]
[322976592,1713556245954,-591.41,0.00016438,2]
[322976593,1713556245963,-500.0,0.00016438,2]
[322976594,1713556245973,-500.0,0.00016438,2]
[322976595,1713556245982,-613.25,0.00016438,2]
[322976596,1713556245992,-466.85725195,0.00016438,2]
[322976597,1713556246001,-1249.35,0.00016438,2]
[322976598,1713556246015,-500.0,0.00016438,2]
[322976599,1713556246024,-500.0,0.00016438,2]
[322976600,1713556246033,-1038.08,0.00016438,2]
[322976601,1713556246042,-500.0,0.00016438,2]
[322976602,1713556246054,-500.0,0.00016438,2]
[322976603,1713556246063,-1338.89,0.00016438,2]
[322976604,1713556246072,-966.77,0.00016438,2]
[322976605,1713556246082,-500.0,0.00016438,2]
[322976606,1713556246095,-500.0,0.00016438,2]
[322976607,1713556246108,-500.0,0.00016438,2]
[322976608,1713556246118,-500.0,0.00016438,2]
[322976609,1713556246127,-500.0,0.00016438,2]
[322976610,1713556246136,-1000.62,0.00016438,2]
[322976611,1713556246145,-937.2,0.00016438,2]
[322976612,1713556246154,-500.0,0.00016438,2]
[322976613,1713556246163,-923.0,0.00016438,2]
[322976615,1713556246172,-500.0,0.00016438,2]
[322976616,1713556246182,-500.0,0.00016438,2]
[322976617,1713556246191,-500.0,0.00016438,2]
[322976618,1713556246200,-500.0,0.00016438,2]
[322976619,1713556246210,-1421.57,0.00016438,2]
[322976620,1713556246219,-500.0,0.00016438,2]
[322976621,1713556246228,-1225.98,0.00016438,2]
[322976622,1713556246237,-747.18,0.00016438,2]
[322976623,1713556246246,-1304.87,0.00016438,2]
[322976624,1713556246255,-500.0,0.00016438,2]
[322976625,1713556246264,-741.07,0.00016438,2]
[322976626,1713556246273,-942.09,0.00016438,2]
[322976627,1713556246284,-1721.59,0.00016438,2]
[322976628,1713556246294,-500.0,0.00016438,2]
[322976629,1713556246304,-541.35,0.00016438,2]
[322976630,1713556246313,-500.0,0.00016438,2]
[322976631,1713556246322,-500.0,0.00016438,2]
[322976632,1713556246338,-500.0,0.00016438,2]
[322976633,1713556246349,-500.0,0.00016438,2]
[322976634,1713556246359,-500.0,0.00016438,2]
[322976635,1713556246368,-500.0,0.00016438,2]
[322976636,1713556246377,-1128.5,0.00016438,2]
[322976637,1713556246386,-500.0,0.00016438,2]
[322976638,1713556246396,-563.34,0.00016438,2]
[322976639,1713556246405,-1167.97,0.00016438,2]
[322976640,1713556246414,-500.0,0.00016438,2]
[322976641,1713556246424,-590.35,0.00016438,2]
[322976642,1713556246434,-500.0,0.00016438,2]
[322976643,1713556246444,-500.0,0.00016438,2]
[322976644,1713556246454,-872.9,0.00016438,2]
[322976645,1713556246464,-889.5,0.00016438,2]
[322976646,1713556246474,-1626.23,0.00016438,2]
[322976647,1713556246484,-500.0,0.00016438,2]
[322976648,1713556246493,-645.91,0.00016438,2]
[322976649,1713556246503,-500.0,0.00016438,2]
[322976650,1713556246512,-1961.45,0.00016438,2]
[322976651,1713556246522,-1702.07,0.00016438,2]
[322976652,1713556246531,-500.0,0.00016438,2]
[322976653,1713556246541,-500.0,0.00016438,2]
[322976654,1713556246550,-842.19,0.00016438,2]
[322976655,1713556246562,-500.0,0.00016438,2]
[322976656,1713556246571,-277.78042235,0.00016438,2]
[322976657,1713556246581,-500.0,0.00016438,2]
[322976658,1713556246590,-500.0,0.00016438,2]
[322976659,1713556246599,-500.0,0.00016438,2]
[322976660,1713556246609,-500.0,0.00016438,2]
[322976661,1713556246618,-500.0,0.00016438,2]
[322976662,1713556246627,-866.91,0.00016438,2]
[322976663,1713556246637,-500.0,0.00016438,2]
[322976664,1713556246646,-500.0,0.00016438,2]
[322976665,1713556246655,-818.38,0.00016438,2]
[322976666,1713556246664,-500.0,0.00016438,2]
[322976667,1713556246674,-788.31,0.00016438,2]
[322976668,1713556246683,-500.0,0.00016438,2]
[322976669,1713556246692,-500.0,0.00016438,2]
[322976670,1713556246702,-500.0,0.00016438,2]
[322976671,1713556246711,-500.0,0.00016438,2]
[322976672,1713556246720,-1516.3,0.00016438,2]
[322976673,1713556246729,-500.0,0.00016438,2]
[322976674,1713556246738,-1375.05,0.00016438,2]
[322976675,1713556246747,-1204.0,0.00016438,2]
[322976676,1713556246756,-500.0,0.00016438,2]
[322976677,1713556246765,-645.15,0.00016438,2]
[322976678,1713556246775,-684.49,0.00016438,2]
[322976679,1713556246784,-500.0,0.00016438,2]
[322976680,1713556246793,-500.0,0.00016438,2]
[322976681,1713556246804,-500.0,0.00016438,2]
[322976682,1713556246813,-500.0,0.00016438,2]
[322976683,1713556246821,-500.0,0.00016438,2]
[322976684,1713556246830,-1205.83,0.00016438,2]
[322976685,1713556246839,-500.0,0.00016438,2]
[322976686,1713556246849,-4282.22,0.00016438,2]
[322976687,1713556246858,-500.0,0.00016438,2]
[322976688,1713556246867,-500.0,0.00016438,2]
[322976689,1713556246876,-898.49,0.00016438,2]
[322976690,1713556246885,-500.0,0.00016438,2]
[322976691,1713556246894,-500.0,0.00016438,2]
[322976692,1713556246903,-1004.37,0.00016438,2]
[322976693,1713556246913,-716.09,0.00016438,2]
[322976694,1713556246922,-500.0,0.00016438,2]
[322976695,1713556246931,-500.0,0.00016438,2]
[322976696,1713556246940,-628.5123096,0.00016438,2]
[322976697,1713556246949,-776.03,0.00016438,2]
[322976698,1713556246959,-500.0,0.00016438,2]
[322976699,1713556246972,-643.01,0.00016438,2]
[322976700,1713556246981,-1516.16,0.00016438,2]
[322976701,1713556246991,-500.0,0.00016438,2]
[322976702,1713556247000,-2300.24,0.00016438,2]
[322976703,1713556247010,-500.0,0.00016438,2]
[322976704,1713556247022,-500.0,0.00016438,2]
[322976705,1713556247032,-606.12,0.00016438,2]
[322976706,1713556247042,-500.0,0.00016438,2]
[322976707,1713556247051,-322.88632743,0.00016438,2]
[322976708,1713556247063,-1899.04,0.00016438,2]
[322976709,1713556247074,-500.0,0.00016438,2]
[322976710,1713556247084,-500.0,0.00016438,2]
[322976711,1713556247096,-537.38,0.00016438,2]
[322976712,1713556247106,-530.58,0.00016438,2]
[322976713,1713556247116,-695.72,0.00016438,2]
[322976714,1713556247126,-500.0,0.00016438,2]
[322976715,1713556247135,-500.0,0.00016438,2]
[322976716,1713556247145,-1653.34,0.00016438,2]
[322976717,1713556247155,-2483.47,0.00016438,2]
[322976718,1713556247165,-609.37853873,0.00016438,2]
[322976719,1713556247175,-543.02,0.00016438,2]
[322976720,1713556247184,-500.0,0.00016438,2]
[322976721,1713556247194,-500.0,0.00016438,2]
[322976722,1713556247204,-1864.05,0.00016438,2]
[322976723,1713556247214,-500.0,0.00016438,2]
[322976724,1713556247223,-2143.92,0.00016438,2]
[322976725,1713556247233,-500.0,0.00016438,2]
[322976726,1713556247244,-500.0,0.00016438,2]
[322976727,1713556247255,-905.8,0.00016438,2]
[322976728,1713556247265,-531.11,0.00016438,2]
[322976729,1713556247275,-3074.52,0.00016438,2]
[322976730,1713556247284,-500.0,0.00016438,2]
[322976731,1713556247294,-500.0,0.00016438,2]
[322976732,1713556247304,-500.0,0.00016438,2]
[322976733,1713556247313,-850.73,0.00016438,2]
[322976734,1713556247322,-500.0,0.00016438,2]
[322976735,1713556247331,-1338.48,0.00016438,2]
[322976736,1713556247341,-1186.01,0.00016438,2]
[322976737,1713556247351,-500.0,0.00016438,2]
[322976738,1713556247362,-1346.4,0.00016438,2]
[322976739,1713556247372,-1187.18,0.00016438,2]
[322976740,1713556247382,-500.0,0.00016438,2]
[322976741,1713556247391,-1759.63,0.00016438,2]
[322976742,1713556247401,-2553.62,0.00016438,2]
[322976743,1713556247411,-3249.65,0.00016438,2]
[322976744,1713556247421,-920.57,0.00016438,2]
[322976745,1713556247432,-500.0,0.00016438,2]
[322976746,1713556247442,-695.75,0.00016438,2]
[322976747,1713556247452,-965.89,0.00016438,2]
[322976748,1713556247462,-818.31,0.00016438,2]
[322976749,1713556247471,-659.77,0.00016438,2]
[322976750,1713556247481,-500.0,0.00016438,2]
[322976751,1713556247491,-1470.34,0.00016438,2]
[322976752,1713556247501,-886.34,0.00016438,2]
[322976753,1713556247510,-628.33,0.00016438,2]
[322976754,1713556247521,-500.0,0.00016438,2]
[322976755,1713556247532,-500.0,0.00016438,2]
[322976756,1713556247541,-500.0,0.00016438,2]
[322976757,1713556247551,-2281.01,0.00016438,2]
[322976758,1713556247562,-1317.65,0.00016438,2]
[322976759,1713556247572,-1072.8,0.00016438,2]
[322976760,1713556247581,-500.0,0.00016438,2]
[322976761,1713556247750,-966.71,0.00016438,2]
[322976762,1713556247760,-500.0,0.00016438,2]
[322976763,1713556247770,-728.82,0.00016438,2]
[322976764,1713556247780,-607.5,0.00016438,2]
[322976765,1713556247790,-500.0,0.00016438,2]
[322976766,1713556247799,-32171.55,0.00016438,2]
[322976767,1713556247810,-2055.66,0.00016438,2]
[322976768,1713556247819,-7422.51,0.00016438,2]
[322976769,1713556247831,-500.0,0.00016438,2]
[322976770,1713556247841,-2917.27,0.00016438,2]
[322976771,1713556247851,-500.0,0.00016438,2]
[322976772,1713556247860,-611.22,0.00016438,2]
[322976773,1713556247870,-4198.77,0.00016438,2]
[322976774,1713556247879,-1532.42,0.00016438,2]
[322976775,1713556247888,-500.0,0.00016438,2]
[322976776,1713556247898,-512.06708346,0.00016438,2]
[322976777,1713556247907,-524.19018544,0.00016438,2]
[322976778,1713556247916,-500.0,0.00016438,2]
[322976779,1713556247926,-500.0,0.00016438,2]
[322976780,1713556247935,-500.0,0.00016438,2]
[322976781,1713556247945,-561.47,0.00016438,2]
[322976782,1713556247955,-500.0,0.00016438,2]
[322976783,1713556247964,-500.0,0.00016438,2]
[322976784,1713556247974,-1705.42,0.00016438,2]
[322976785,1713556247983,-2096.98,0.00016438,2]
[322976786,1713556247993,-1955.43,0.00016438,2]
[322976787,1713556248003,-770.62,0.00016438,2]
[322976788,1713556248014,-500.0,0.00016438,2]
[322976789,1713556248026,-1912.52,0.00016438,2]
[322976790,1713556248035,-1967.63,0.00016438,2]
[322976791,1713556248044,-1852.66,0.00016438,2]
[322976792,1713556248056,-500.0,0.00016438,2]
[322976793,1713556248067,-500.0,0.00016438,2]
[322976794,1713556248076,-500.0,0.00016438,2]
[322976795,1713556248086,-1822.67,0.00016438,2]
[322976796,1713556248096,-500.0,0.00016438,2]
[322976797,1713556248106,-917.16,0.00016438,2]
[322976798,1713556248115,-28261.71,0.00016438,2]
[322976799,1713556248124,-884.05,0.00016438,2]
[322976800,1713556248134,-2206.81,0.00016438,2]
[322976801,1713556248143,-4007.63,0.00016438,2]
[322976802,1713556248153,-2295.03,0.00016438,2]
[322976803,1713556248164,-1356.85,0.00016438,2]
[322976804,1713556248173,-500.0,0.00016438,2]
[322976805,1713556248182,-500.0,0.00016438,2]
[322976806,1713556248192,-1754.31,0.00016438,2]
[322976807,1713556248202,-500.0,0.00016438,2]
[322976808,1713556248212,-500.0,0.00016438,2]
[322976809,1713556248221,-500.0,0.00016438,2]
[322976810,1713556248231,-3542.68,0.00016438,2]
[322976811,1713556248240,-3706.08,0.00016438,2]
[322976812,1713556248250,-1998.14,0.00016438,2]
[322976813,1713556248260,-500.0,0.00016438,2]
[322976814,1713556248271,-663.55,0.00016438,2]
[322976815,1713556248280,-569.94,0.00016438,2]
[322976816,1713556248289,-500.0,0.00016438,2]
[322976817,1713556248299,-500.0,0.00016438,2]
[322976818,1713556248309,-500.0,0.00016438,2]
[322976819,1713556248319,-500.0,0.00016438,2]
[322976820,1713556248329,-500.0,0.00016438,2]
[322976821,1713556248338,-1233.03,0.00016438,2]
[322976822,1713556248348,-2435.68,0.00016438,2]
[322976823,1713556248357,-500.0,0.00016438,2]
[322976824,1713556248366,-500.0,0.00016438,2]
[322976825,1713556248376,-1492.18,0.00016438,2]
[322976826,1713556248385,-2358.4,0.00016438,2]
[322976827,1713556248394,-500.0,0.00016438,2]
[322976828,1713556248403,-500.0,0.00016438,2]
[322976829,1713556248413,-6855.2,0.00016438,2]
[322976830,1713556248422,-1793.82,0.00016438,2]
[322976831,1713556248433,-817.01,0.00016438,2]
[322976832,1713556248443,-25550.06,0.00016438,2]
[322976833,1713556248453,-2797.08,0.00016438,2]
[322976834,1713556248464,-500.0,0.00016438,2]
[322976835,1713556248473,-664.07,0.00016438,2]
[322976836,1713556248482,-1070.73,0.00016438,2]
[322976837,1713556248491,-500.0,0.00016438,2]
[322976838,1713556248501,-500.0,0.00016438,2]
[322976839,1713556248511,-5827.19,0.00016438,2]
[322976840,1713556248521,-2136.81,0.00016438,2]
[322976841,1713556248530,-1702.28,0.00016438,2]
[322976842,1713556248541,-500.0,0.00016438,2]
[322976843,1713556248551,-500.0,0.00016438,2]
[322976844,1713556248563,-500.0,0.00016438,2]
[322976845,1713556248572,-500.0,0.00016438,2]
[322976846,1713556248581,-500.0,0.00016438,2]
[322976847,1713556248591,-500.0,0.00016438,2]
[322976848,1713556248600,-798.21,0.00016438,2]
[322976849,1713556248610,-500.0,0.00016438,2]